[Event "Live Chess"]
[Site "Chess.com"]
[Date "2023.05.20"]
[Round "-"]
[White "Pandreq"]
[Black "Hacker_2009"]
[Result "0-1"]
[WhiteElo "1277"]
[BlackElo "1931"]
[TimeControl "300"]
[EndTime "11:39:42 PDT"]
[Termination "Hacker_2009 won by resignation"]

1. d4 {[%clk 0:04:57.7]} 1... Nf6 {[%clk 0:04:58.3]} 2. c4 {[%clk 0:04:56.5]}
2... e6 {[%clk 0:04:56.2]} 3. Nc3 {[%clk 0:04:55.9]} 3... d5 {[%clk 0:04:55.8]}
4. cxd5 {[%clk 0:04:54.7]} 4... Nxd5 {[%clk 0:04:54.5]} 5. e4 {[%clk 0:04:53.9]}
5... Nf6 {[%clk 0:04:52.9]} 6. e5 {[%clk 0:04:49.4]} 6... Nd5 {[%clk 0:04:51.7]}
7. Nxd5 {[%clk 0:04:48.5]} 7... Qxd5 {[%clk 0:04:50.1]} 8. Nf3 {[%clk
0:04:46.3]} 8... c5 {[%clk 0:04:49.1]} 9. Qa4+ {[%clk 0:04:32.3]} 9... Bd7
{[%clk 0:04:46.9]} 10. Qc4 {[%clk 0:04:31.4]} 10... Qxc4 {[%clk 0:04:41.6]} 11.
Bxc4 {[%clk 0:04:30.4]} 11... cxd4 {[%clk 0:04:41.1]} 12. Nxd4 {[%clk
0:04:29.8]} 12... Bb4+ {[%clk 0:04:40.7]} 13. Bd2 {[%clk 0:04:23.8]} 13... Bxd2+
{[%clk 0:04:39.4]} 14. Kxd2 {[%clk 0:04:22.7]} 14... Nc6 {[%clk 0:04:39]} 15.
Nxc6 {[%clk 0:04:20.4]} 15... Bxc6 {[%clk 0:04:38.2]} 16. f3 {[%clk 0:04:19.1]}
16... Ke7 {[%clk 0:04:37.5]} 17. Rad1 {[%clk 0:04:16.5]} 17... Rhd8+ {[%clk
0:04:36.8]} 18. Kc2 {[%clk 0:04:15.5]} 18... Rac8 {[%clk 0:04:35.8]} 19. b3
{[%clk 0:04:12.9]} 19... Bd5 {[%clk 0:04:34.2]} 20. Rd4 {[%clk 0:04:06.8]} 20...
b5 {[%clk 0:04:31.1]} 21. Kd3 {[%clk 0:03:59.3]} 21... bxc4+ {[%clk 0:04:29.1]}
22. bxc4 {[%clk 0:03:58.7]} 22... Bxc4+ {[%clk 0:04:27.7]} 23. Ke3 {[%clk
0:03:55.3]} 23... Rxd4 {[%clk 0:04:26.2]} 24. Kxd4 {[%clk 0:03:54.3]} 24... Bxa2
{[%clk 0:04:25.7]} 25. Ra1 {[%clk 0:03:52.6]} 25... Rc2 {[%clk 0:04:22.1]} 26.
g3 {[%clk 0:03:36]} 26... Rxh2 {[%clk 0:04:19.3]} 27. f4 {[%clk 0:03:35.2]}
27... Rd2+ {[%clk 0:04:18]} 28. Ke3 {[%clk 0:03:33.2]} 28... Rb2 {[%clk
0:04:16.9]} 29. Kd3 {[%clk 0:03:31.2]} 29... a5 {[%clk 0:04:14.4]} 30. Kc3
{[%clk 0:03:30]} 30... Rg2 {[%clk 0:04:11.6]} 31. Kd4 {[%clk 0:03:25.7]} 31...
a4 {[%clk 0:04:09.5]} 32. Kc5 {[%clk 0:03:24.1]} 32... Bb3 {[%clk 0:04:08.1]}
33. Kb4 {[%clk 0:03:18.6]} 33... Rxg3 {[%clk 0:04:04.4]} 34. Ra3 {[%clk
0:03:17]} 34... h5 {[%clk 0:04:01.1]} 0-1

[Event "Live Chess"]
[Site "Chess.com"]
[Date "2023.05.20"]
[Round "-"]
[White "mach247"]
[Black "PantherCal"]
[Result "1-0"]
[WhiteElo "1322"]
[BlackElo "1785"]
[TimeControl "300"]
[EndTime "11:39:43 PDT"]
[Termination "mach247 won by resignation"]

1. e4 {[%clk 0:04:59.7]} 1... d5 {[%clk 0:04:58.8]} 2. exd5 {[%clk 0:04:59.1]}
2... Qxd5 {[%clk 0:04:58.7]} 3. Nc3 {[%clk 0:04:58.9]} 3... Qa5 {[%clk
0:04:57.9]} 4. d4 {[%clk 0:04:58.3]} 4... Nf6 {[%clk 0:04:54.5]} 5. Nf3 {[%clk
0:04:57.5]} 5... Bf5 {[%clk 0:04:52.9]} 6. Bd3 {[%clk 0:04:53.4]} 6... Bxd3
{[%clk 0:04:50.4]} 7. Qxd3 {[%clk 0:04:53.3]} 7... c6 {[%clk 0:04:49.5]} 8. Bd2
{[%clk 0:04:52.5]} 8... e6 {[%clk 0:04:48.3]} 9. Ne4 {[%clk 0:04:44.1]} 9... Qd8
{[%clk 0:04:47.2]} 10. Nxf6+ {[%clk 0:04:43.5]} 10... gxf6 {[%clk 0:04:47.1]}
11. O-O-O {[%clk 0:04:41.2]} 11... Nd7 {[%clk 0:04:46.4]} 12. Rhe1 {[%clk
0:04:36.7]} 12... Bd6 {[%clk 0:04:41]} 13. g3 {[%clk 0:04:19.6]} 13... Qa5
{[%clk 0:04:38.7]} 14. Bxa5 {[%clk 0:04:17.6]} 1-0

[Event "Live Chess"]
[Site "Chess.com"]
[Date "2023.05.20"]
[Round "-"]
[White "Missedidea"]
[Black "Geomorph"]
[Result "1-0"]
[WhiteElo "1726"]
[BlackElo "1221"]
[TimeControl "300"]
[EndTime "11:40:00 PDT"]
[Termination "Missedidea won on time"]

1. d4 {[%clk 0:04:58.1]} 1... d5 {[%clk 0:04:58.9]} 2. c4 {[%clk 0:04:56]} 2...
c6 {[%clk 0:04:55.5]} 3. Nf3 {[%clk 0:04:54]} 3... Nf6 {[%clk 0:04:54.6]} 4. Nc3
{[%clk 0:04:52.6]} 4... Qb6 {[%clk 0:04:53.4]} 5. e3 {[%clk 0:04:42.3]} 5...
dxc4 {[%clk 0:04:43.2]} 6. Bxc4 {[%clk 0:04:40.3]} 6... Bg4 {[%clk 0:04:42.6]}
7. O-O {[%clk 0:04:34.9]} 7... Nbd7 {[%clk 0:04:41.3]} 8. h3 {[%clk 0:04:31.8]}
8... Bf5 {[%clk 0:04:40.2]} 9. a3 {[%clk 0:04:20.9]} 9... e6 {[%clk 0:04:34.1]}
10. b4 {[%clk 0:04:17.5]} 10... Be7 {[%clk 0:04:25.9]} 11. Re1 {[%clk
0:04:09.2]} 11... O-O {[%clk 0:04:21]} 12. e4 {[%clk 0:04:03.5]} 12... Bg6
{[%clk 0:04:19]} 13. e5 {[%clk 0:03:56.6]} 13... Nd5 {[%clk 0:04:11]} 14. Ne4
{[%clk 0:03:51.1]} 14... Rad8 {[%clk 0:04:04.8]} 15. Qb3 {[%clk 0:03:26.6]}
15... Bxe4 {[%clk 0:03:08.7]} 16. Rxe4 {[%clk 0:03:24.2]} 16... f6 {[%clk
0:03:08.6]} 17. Bb2 {[%clk 0:03:10.9]} 17... fxe5 {[%clk 0:03:06.1]} 18. Nxe5
{[%clk 0:02:55.3]} 18... Nxe5 {[%clk 0:02:59.1]} 19. Rxe5 {[%clk 0:02:54.3]}
19... Bf6 {[%clk 0:02:51]} 20. Re4 {[%clk 0:02:36.6]} 20... Be7 {[%clk
0:02:40.7]} 21. Rf1 {[%clk 0:02:27.7]} 21... Nf6 {[%clk 0:02:33.2]} 22. Rxe6
{[%clk 0:02:23.2]} 22... Kh8 {[%clk 0:02:32.2]} 23. Qe3 {[%clk 0:02:07]} 23...
Bd6 {[%clk 0:02:23.8]} 24. Bd3 {[%clk 0:01:51.7]} 24... Qc7 {[%clk 0:02:19.6]}
25. g4 {[%clk 0:01:31.6]} 25... Rde8 {[%clk 0:01:29.3]} 26. g5 {[%clk
0:01:14.3]} 26... Rxe6 {[%clk 0:01:15.9]} 27. Qxe6 {[%clk 0:01:12]} 27... Bh2+
{[%clk 0:01:13.5]} 28. Kg2 {[%clk 0:01:06.1]} 28... Nd5 {[%clk 0:01:11.3]} 29.
Qe4 {[%clk 0:00:54.3]} 29... g6 {[%clk 0:01:04.5]} 30. Bc4 {[%clk 0:00:42.6]}
30... Rxf2+ {[%clk 0:00:25]} 31. Rxf2 {[%clk 0:00:38.2]} 31... Qg3+ {[%clk
0:00:19.4]} 32. Kf1 {[%clk 0:00:35]} 32... Qg1+ {[%clk 0:00:18.2]} 33. Ke2
{[%clk 0:00:32]} 33... Nf4+ {[%clk 0:00:16]} 34. Rxf4 {[%clk 0:00:28]} 34...
Bxf4 {[%clk 0:00:06.8]} 35. d5+ {[%clk 0:00:24.9]} 35... Kg8 {[%clk 0:00:03.4]}
36. dxc6+ {[%clk 0:00:22.9]} 36... Kf8 {[%clk 0:00:00.5]} 37. Qxf4+ {[%clk
0:00:21.2]} 1-0

[Event "Live Chess"]
[Site "Chess.com"]
[Date "2023.05.20"]
[Round "-"]
[White "whitedjohn"]
[Black "Brooms1989"]
[Result "1-0"]
[WhiteElo "1670"]
[BlackElo "1007"]
[TimeControl "300"]
[EndTime "11:40:06 PDT"]
[Termination "whitedjohn won by resignation"]

1. e4 {[%clk 0:04:57.7]} 1... e5 {[%clk 0:04:57.4]} 2. Nf3 {[%clk 0:04:55.3]}
2... Nc6 {[%clk 0:04:53.2]} 3. Bb5 {[%clk 0:04:52.9]} 3... a6 {[%clk 0:04:52.1]}
4. Ba4 {[%clk 0:04:50.4]} 4... Nf6 {[%clk 0:04:51.1]} 5. O-O {[%clk 0:04:48.6]}
5... Bc5 {[%clk 0:04:48.3]} 6. d3 {[%clk 0:04:43.7]} 6... h6 {[%clk 0:04:45.5]}
7. Bxc6 {[%clk 0:04:40]} 7... dxc6 {[%clk 0:04:37.4]} 8. Nxe5 {[%clk 0:04:36.3]}
8... O-O {[%clk 0:04:36.9]} 9. Nf3 {[%clk 0:04:31.6]} 9... Bg4 {[%clk
0:04:33.7]} 10. h3 {[%clk 0:04:29.5]} 10... Bh5 {[%clk 0:04:32.2]} 11. Bf4
{[%clk 0:04:24.9]} 11... Qd7 {[%clk 0:04:14.1]} 12. Nbd2 {[%clk 0:04:13.8]}
12... Rfe8 {[%clk 0:03:58.9]} 13. Nb3 {[%clk 0:04:10.2]} 13... Bb6 {[%clk
0:03:50.3]} 14. Be3 {[%clk 0:04:07.5]} 14... Bxf3 {[%clk 0:03:39.5]} 15. Qxf3
{[%clk 0:04:04.3]} 15... Re5 {[%clk 0:03:35.2]} 16. Bxb6 {[%clk 0:03:53.1]}
16... cxb6 {[%clk 0:03:33.5]} 17. Rfe1 {[%clk 0:03:47]} 17... Rg5 {[%clk
0:03:23.4]} 18. Kh1 {[%clk 0:03:41.8]} 18... Re8 {[%clk 0:02:46]} 19. Re2 {[%clk
0:03:37.6]} 19... Nh7 {[%clk 0:02:36.3]} 20. Rae1 {[%clk 0:03:35.3]} 20... Re6
{[%clk 0:02:34.5]} 21. e5 {[%clk 0:03:30.3]} 21... Nf8 {[%clk 0:02:05.4]} 22. d4
{[%clk 0:03:25.2]} 22... Ng6 {[%clk 0:02:00.4]} 23. g3 {[%clk 0:03:08.5]} 23...
f6 {[%clk 0:01:12.4]} 24. exf6 {[%clk 0:03:01.8]} 24... Rxe2 {[%clk 0:01:10.5]}
25. Rxe2 {[%clk 0:02:56.6]} 25... Qxh3+ {[%clk 0:01:09.7]} 26. Kg1 {[%clk
0:02:53.2]} 26... Nh4 {[%clk 0:01:08.4]} 27. f7+ {[%clk 0:02:34.3]} 27... Kh7
{[%clk 0:01:03.5]} 28. Qe4+ {[%clk 0:02:20.6]} 28... Rg6 {[%clk 0:00:26.4]} 29.
f8=N+ {[%clk 0:02:14.3]} 29... Kg8 {[%clk 0:00:17.4]} 30. Nxg6 {[%clk
0:02:07.6]} 30... Nxg6 {[%clk 0:00:11.9]} 31. Qxg6 {[%clk 0:02:04]} 31... Qc8
{[%clk 0:00:08.8]} 32. Re8+ {[%clk 0:01:58.7]} 32... Qxe8 {[%clk 0:00:06.1]} 1-0

[Event "Live Chess"]
[Site "Chess.com"]
[Date "2023.05.20"]
[Round "-"]
[White "MartinWalker4"]
[Black "MaximKris"]
[Result "1-0"]
[WhiteElo "2090"]
[BlackElo "1888"]
[TimeControl "300"]
[EndTime "11:40:06 PDT"]
[Termination "MartinWalker4 won by checkmate"]

1. e4 {[%clk 0:04:56.1]} 1... e5 {[%clk 0:04:58.5]} 2. Nf3 {[%clk 0:04:54.2]}
2... Nc6 {[%clk 0:04:57.6]} 3. Bb5 {[%clk 0:04:52.4]} 3... a6 {[%clk 0:04:56.3]}
4. Ba4 {[%clk 0:04:51.3]} 4... Nf6 {[%clk 0:04:55.3]} 5. O-O {[%clk 0:04:49.4]}
5... Nxe4 {[%clk 0:04:54.2]} 6. d4 {[%clk 0:04:47.7]} 6... b5 {[%clk 0:04:52.6]}
7. Bb3 {[%clk 0:04:46.5]} 7... d5 {[%clk 0:04:50.9]} 8. dxe5 {[%clk 0:04:45.3]}
8... Be6 {[%clk 0:04:49.4]} 9. Nbd2 {[%clk 0:04:43.5]} 9... Nc5 {[%clk
0:04:47.6]} 10. c3 {[%clk 0:04:42.2]} 10... Nxb3 {[%clk 0:04:47]} 11. Nxb3
{[%clk 0:04:39.7]} 11... Be7 {[%clk 0:04:46]} 12. Nbd4 {[%clk 0:04:23.6]} 12...
Nxd4 {[%clk 0:04:42.7]} 13. Nxd4 {[%clk 0:04:22]} 13... O-O {[%clk 0:04:38.9]}
14. f4 {[%clk 0:04:18.3]} 14... Bc5 {[%clk 0:04:36.5]} 15. Be3 {[%clk
0:04:11.1]} 15... Bxd4 {[%clk 0:04:28.3]} 16. Bxd4 {[%clk 0:04:02.8]} 16... Bf5
{[%clk 0:04:27.3]} 17. Qf3 {[%clk 0:03:49.4]} 17... Be4 {[%clk 0:04:25.1]} 18.
Qg3 {[%clk 0:03:47.5]} 18... Qe7 {[%clk 0:04:08.3]} 19. f5 {[%clk 0:03:36.5]}
19... Kh8 {[%clk 0:03:57.9]} 20. f6 {[%clk 0:03:19]} 20... gxf6 {[%clk
0:03:54.5]} 21. exf6 {[%clk 0:03:17.3]} 21... Qe6 {[%clk 0:03:52.4]} 22. Qg7#
{[%clk 0:03:15.1]} 1-0

[Event "Live Chess"]
[Site "Chess.com"]
[Date "2023.05.20"]
[Round "-"]
[White "xx_blindpuffin_xx"]
[Black "chessfiction"]
[Result "1-0"]
[WhiteElo "2208"]
[BlackElo "2401"]
[TimeControl "300"]
[EndTime "11:40:08 PDT"]
[Termination "xx_blindpuffin_xx won by resignation"]

1. d4 {[%clk 0:04:58.6]} 1... Nf6 {[%clk 0:04:56.6]} 2. Bf4 {[%clk 0:04:58]}
2... e6 {[%clk 0:04:47.9]} 3. e3 {[%clk 0:04:57.1]} 3... b6 {[%clk 0:04:46.4]}
4. Nf3 {[%clk 0:04:56.6]} 4... Bb7 {[%clk 0:04:45.1]} 5. h3 {[%clk 0:04:56.2]}
5... d6 {[%clk 0:04:44.4]} 6. Be2 {[%clk 0:04:55.6]} 6... Nbd7 {[%clk 0:04:44]}
7. O-O {[%clk 0:04:55.2]} 7... Qe7 {[%clk 0:04:43.6]} 8. c4 {[%clk 0:04:54.9]}
8... h6 {[%clk 0:04:41.9]} 9. Nc3 {[%clk 0:04:54.1]} 9... g5 {[%clk 0:04:41.1]}
10. Bh2 {[%clk 0:04:52.5]} 10... Rg8 {[%clk 0:04:40.5]} 11. Nd2 {[%clk
0:04:49.2]} 11... g4 {[%clk 0:04:34.5]} 12. hxg4 {[%clk 0:04:41.3]} 12... h5
{[%clk 0:04:32.4]} 13. Bf3 {[%clk 0:04:36.9]} 13... c6 {[%clk 0:04:08]} 14. Nce4
{[%clk 0:04:24.5]} 14... e5 {[%clk 0:04:05.5]} 15. gxh5 {[%clk 0:04:16.1]} 15...
O-O-O {[%clk 0:04:01.9]} 16. Qa4 {[%clk 0:04:12.3]} 16... Kb8 {[%clk 0:03:58.8]}
17. Ng3 {[%clk 0:04:01.9]} 17... Ng4 {[%clk 0:03:52]} 18. Bxc6 {[%clk
0:03:34.3]} 18... Qh4 {[%clk 0:03:47.3]} 19. Nf3 {[%clk 0:03:32.8]} 19... Bxc6
{[%clk 0:03:41.5]} 20. Qxc6 {[%clk 0:03:30.1]} 20... Qf6 {[%clk 0:03:38.1]} 21.
a4 {[%clk 0:02:56.5]} 21... e4 {[%clk 0:03:28.2]} 22. Nxe4 {[%clk 0:02:43.9]}
22... Qxf3 {[%clk 0:03:25.9]} 23. Bxd6+ {[%clk 0:02:33.1]} 23... Bxd6 {[%clk
0:03:22.3]} 24. Qxd6+ {[%clk 0:02:32.3]} 24... Kb7 {[%clk 0:03:18.7]} 25. gxf3
{[%clk 0:02:21.7]} 25... Nde5 {[%clk 0:03:09.8]} 26. Qe7+ {[%clk 0:02:15.1]}
26... Rd7 {[%clk 0:03:06.1]} 27. Qxd7+ {[%clk 0:02:14.3]} 27... Nxd7 {[%clk
0:03:04.4]} 28. fxg4 {[%clk 0:02:13.8]} 28... Rxg4+ {[%clk 0:03:03.8]} 29. Ng3
{[%clk 0:02:13.5]} 1-0

[Event "Live Chess"]
[Site "Chess.com"]
[Date "2023.05.20"]
[Round "-"]
[White "Leonid_Starozhilov"]
[Black "ReceptiveCamel"]
[Result "1-0"]
[WhiteElo "2653"]
[BlackElo "626"]
[TimeControl "300"]
[EndTime "11:40:23 PDT"]
[Termination "Leonid_Starozhilov won by resignation"]

1. e4 {[%clk 0:04:58.9]} 1... e5 {[%clk 0:04:57.8]} 2. Bc4 {[%clk 0:04:58]} 2...
Bc5 {[%clk 0:04:56.2]} 3. Qh5 {[%clk 0:04:56.8]} 3... g6 {[%clk 0:04:52.6]} 4.
Qxe5+ {[%clk 0:04:55.6]} 4... Ne7 {[%clk 0:04:49.3]} 5. Qxh8+ {[%clk 0:04:54.4]}
5... Ng8 {[%clk 0:04:45.4]} 6. Qxg8+ {[%clk 0:04:53.8]} 6... Ke7 {[%clk
0:04:44.9]} 7. Qxf7+ {[%clk 0:04:52.9]} 7... Kd6 {[%clk 0:04:43.2]} 8. Qd5+
{[%clk 0:04:52]} 8... Ke7 {[%clk 0:04:41.4]} 9. Qxc5+ {[%clk 0:04:51]} 9... Ke8
{[%clk 0:04:40]} 10. Qe5+ {[%clk 0:04:49.2]} 10... Qe7 {[%clk 0:04:38.5]} 11.
Qxe7+ {[%clk 0:04:47.4]} 11... Kxe7 {[%clk 0:04:36.2]} 12. d4 {[%clk 0:04:47.3]}
12... Nc6 {[%clk 0:04:33.4]} 13. c3 {[%clk 0:04:45.3]} 13... b6 {[%clk 0:04:29]}
14. Bg5+ {[%clk 0:04:42.9]} 14... Kf8 {[%clk 0:04:27]} 15. h4 {[%clk 0:04:41.9]}
1-0

[Event "Live Chess"]
[Site "Chess.com"]
[Date "2023.05.20"]
[Round "-"]
[White "Albul"]
[Black "MJMykh"]
[Result "1-0"]
[WhiteElo "2162"]
[BlackElo "1034"]
[TimeControl "300"]
[EndTime "11:40:28 PDT"]
[Termination "Albul won by resignation"]

1. e4 {[%clk 0:04:57.7]} 1... e5 {[%clk 0:04:59.6]} 2. Bc4 {[%clk 0:04:56]} 2...
Nc6 {[%clk 0:04:57.7]} 3. Nf3 {[%clk 0:04:54.3]} 3... h6 {[%clk 0:04:55.9]} 4.
d3 {[%clk 0:04:53.1]} 4... Nf6 {[%clk 0:04:54.4]} 5. Qe2 {[%clk 0:04:51.2]} 5...
Bc5 {[%clk 0:04:52]} 6. c3 {[%clk 0:04:49.8]} 6... O-O {[%clk 0:04:50.1]} 7. b4
{[%clk 0:04:47.1]} 7... Bb6 {[%clk 0:04:47.6]} 8. Nbd2 {[%clk 0:04:46.3]} 8...
Qe7 {[%clk 0:04:46]} 9. Nf1 {[%clk 0:04:43.6]} 9... a6 {[%clk 0:04:44.1]} 10. h3
{[%clk 0:04:42]} 10... a5 {[%clk 0:04:42.3]} 11. b5 {[%clk 0:04:39.9]} 11... Na7
{[%clk 0:04:38.4]} 12. a4 {[%clk 0:04:39.2]} 12... c6 {[%clk 0:04:35.5]} 13. Ba3
{[%clk 0:04:36.8]} 13... d6 {[%clk 0:04:33.1]} 14. g4 {[%clk 0:04:31.7]} 14...
cxb5 {[%clk 0:04:32]} 15. axb5 {[%clk 0:04:30.1]} 15... Bd7 {[%clk 0:04:29.7]}
16. Rb1 {[%clk 0:04:29.2]} 16... Rfc8 {[%clk 0:04:20.4]} 17. Ng3 {[%clk
0:04:25.7]} 17... Bc5 {[%clk 0:04:13.2]} 18. Bc1 {[%clk 0:04:20.8]} 18... Bb6
{[%clk 0:04:03]} 19. Nf5 {[%clk 0:04:17.8]} 19... Bxf5 {[%clk 0:04:00.8]} 20.
gxf5 {[%clk 0:04:17.1]} 20... Rc5 {[%clk 0:03:55.8]} 21. Ba3 {[%clk 0:04:13.1]}
21... Rcc8 {[%clk 0:03:48.7]} 22. Rg1 {[%clk 0:04:10.4]} 22... Nh5 {[%clk
0:03:44.5]} 23. Nxe5 {[%clk 0:03:41]} 23... Qxe5 {[%clk 0:03:37.4]} 24. Qxh5
{[%clk 0:03:40]} 24... Qxc3+ {[%clk 0:03:36]} 25. Kf1 {[%clk 0:03:34.6]} 25...
Rxc4 {[%clk 0:03:19.3]} 26. dxc4 {[%clk 0:03:24.3]} 26... Qxc4+ {[%clk
0:03:17.6]} 27. Qe2 {[%clk 0:03:21.9]} 27... Qa4 {[%clk 0:03:04.7]} 28. Bxd6
{[%clk 0:03:13.9]} 28... Rd8 {[%clk 0:02:53.4]} 29. e5 {[%clk 0:03:10]} 29...
Nc6 {[%clk 0:02:35.6]} 30. bxc6 {[%clk 0:03:04.5]} 30... Qxc6 {[%clk 0:02:34.5]}
31. f6 {[%clk 0:02:57.3]} 31... g6 {[%clk 0:02:29.5]} 32. Qa2 {[%clk 0:02:31.2]}
32... Qe4 {[%clk 0:01:58.6]} 33. Rxb6 {[%clk 0:02:23]} 33... Qd3+ {[%clk
0:01:43.3]} 34. Kg2 {[%clk 0:02:21.2]} 34... Qe4+ {[%clk 0:01:40.7]} 35. Kh2
{[%clk 0:02:18.5]} 35... Qf4+ {[%clk 0:01:38]} 36. Rg3 {[%clk 0:02:17.5]} 36...
h5 {[%clk 0:01:20.2]} 37. Rxb7 {[%clk 0:02:14.6]} 37... Kh8 {[%clk 0:01:05.4]}
38. Qxf7 {[%clk 0:02:11.4]} 38... Qxf2+ {[%clk 0:01:01.5]} 39. Kh1 {[%clk
0:02:01.6]} 39... Qf1+ {[%clk 0:00:50.3]} 40. Kh2 {[%clk 0:01:58.6]} 40... Qf2+
{[%clk 0:00:48.9]} 41. Rg2 {[%clk 0:01:58.2]} 41... Qf4+ {[%clk 0:00:46.9]} 42.
Kg1 {[%clk 0:01:56.8]} 42... Qe3+ {[%clk 0:00:44.7]} 43. Rf2 {[%clk 0:01:48.5]}
43... Qg3+ {[%clk 0:00:41.5]} 44. Kf1 {[%clk 0:01:47.6]} 44... Qxh3+ {[%clk
0:00:39.1]} 45. Ke2 {[%clk 0:01:47]} 45... Qg4+ {[%clk 0:00:36.4]} 46. Ke3
{[%clk 0:01:45.5]} 46... Qd4+ {[%clk 0:00:32.6]} 47. Kxd4 {[%clk 0:01:43.8]} 1-0

[Event "Live Chess"]
[Site "Chess.com"]
[Date "2023.05.20"]
[Round "-"]
[White "diana21strabt"]
[Black "HoarseyHorsey"]
[Result "1-0"]
[WhiteElo "1694"]
[BlackElo "1366"]
[TimeControl "300"]
[EndTime "11:40:38 PDT"]
[Termination "diana21strabt won by checkmate"]

1. e4 {[%clk 0:04:57.9]} 1... c5 {[%clk 0:04:56.6]} 2. Nf3 {[%clk 0:04:56.5]}
2... e6 {[%clk 0:04:56]} 3. d4 {[%clk 0:04:55.3]} 3... cxd4 {[%clk 0:04:55.4]}
4. Nxd4 {[%clk 0:04:54.7]} 4... Nf6 {[%clk 0:04:54.9]} 5. Nc3 {[%clk 0:04:53.8]}
5... Nc6 {[%clk 0:04:54.3]} 6. Ndb5 {[%clk 0:04:51.8]} 6... Bb4 {[%clk 0:04:53]}
7. a3 {[%clk 0:04:48]} 7... Bxc3+ {[%clk 0:04:48]} 8. Nxc3 {[%clk 0:04:46.1]}
8... d5 {[%clk 0:04:45.4]} 9. exd5 {[%clk 0:04:45]} 9... exd5 {[%clk 0:04:44.1]}
10. Bb5 {[%clk 0:04:43.3]} 10... O-O {[%clk 0:04:42.9]} 11. O-O {[%clk
0:04:42.2]} 11... Bg4 {[%clk 0:04:37]} 12. f3 {[%clk 0:04:39.8]} 12... Be6
{[%clk 0:04:32.3]} 13. Bg5 {[%clk 0:04:37.9]} 13... h6 {[%clk 0:04:30.7]} 14.
Bxf6 {[%clk 0:04:36.5]} 14... Qxf6 {[%clk 0:04:29.9]} 15. Bxc6 {[%clk
0:04:35.6]} 15... bxc6 {[%clk 0:04:28.9]} 16. Qd2 {[%clk 0:04:31.9]} 16... Rab8
{[%clk 0:04:26.7]} 17. b4 {[%clk 0:04:28.2]} 17... Rfd8 {[%clk 0:04:23.8]} 18.
Na4 {[%clk 0:04:26.9]} 18... a5 {[%clk 0:04:05.3]} 19. Nc5 {[%clk 0:04:24.3]}
19... axb4 {[%clk 0:04:02.5]} 20. axb4 {[%clk 0:04:23.5]} 20... Bf5 {[%clk
0:03:53.1]} 21. Ra6 {[%clk 0:04:17.1]} 21... Re8 {[%clk 0:03:37.9]} 22. Rfa1
{[%clk 0:04:11.9]} 22... Rb5 {[%clk 0:02:55]} 23. g4 {[%clk 0:04:07.4]} 23...
Bg6 {[%clk 0:02:47.9]} 24. Ra8 {[%clk 0:03:36.8]} 24... Rxa8 {[%clk 0:02:27.4]}
25. Rxa8+ {[%clk 0:03:34.1]} 25... Kh7 {[%clk 0:02:26.5]} 26. c3 {[%clk
0:03:18.6]} 26... Qxf3 {[%clk 0:02:08.4]} 27. Qd4 {[%clk 0:03:07.4]} 27... Bc2
{[%clk 0:01:01.3]} 28. Nd7 {[%clk 0:02:44.4]} 28... Be4 {[%clk 0:00:50.8]} 29.
Nf8+ {[%clk 0:02:41.3]} 29... Kg8 {[%clk 0:00:47.1]} 30. Ne6+ {[%clk 0:02:33.5]}
30... Kh7 {[%clk 0:00:46]} 31. Qxg7# {[%clk 0:02:32.4]} 1-0

[Event "Live Chess"]
[Site "Chess.com"]
[Date "2023.05.20"]
[Round "-"]
[White "maxwalden"]
[Black "hturner40"]
[Result "0-1"]
[WhiteElo "1212"]
[BlackElo "1814"]
[TimeControl "300"]
[EndTime "11:40:48 PDT"]
[Termination "hturner40 won by resignation"]

1. d4 {[%clk 0:04:58.5]} 1... Nf6 {[%clk 0:04:56.2]} 2. c4 {[%clk 0:04:57.2]}
2... g6 {[%clk 0:04:54.2]} 3. Nc3 {[%clk 0:04:56.7]} 3... d5 {[%clk 0:04:53.3]}
4. Bf4 {[%clk 0:04:55.4]} 4... Bg7 {[%clk 0:04:50.7]} 5. e3 {[%clk 0:04:54.3]}
5... c5 {[%clk 0:04:47.1]} 6. dxc5 {[%clk 0:04:51.9]} 6... Qa5 {[%clk
0:04:42.1]} 7. cxd5 {[%clk 0:04:48.6]} 7... Nxd5 {[%clk 0:04:40.5]} 8. Qxd5
{[%clk 0:04:29.2]} 8... Bxc3+ {[%clk 0:04:38.4]} 9. bxc3 {[%clk 0:04:27.8]} 9...
Qxc3+ {[%clk 0:04:36.2]} 10. Qd2 {[%clk 0:04:26.2]} 10... Qxa1+ {[%clk
0:04:33.3]} 11. Qd1 {[%clk 0:04:25.1]} 11... Qc3+ {[%clk 0:04:11.6]} 12. Qd2
{[%clk 0:04:21.5]} 12... Qxc5 {[%clk 0:04:02.9]} 13. Nf3 {[%clk 0:04:13.4]}
13... Nc6 {[%clk 0:04:01]} 14. Be2 {[%clk 0:04:06.8]} 14... O-O {[%clk
0:03:58.6]} 15. O-O {[%clk 0:04:05.2]} 15... Rd8 {[%clk 0:03:57]} 16. Qb2 {[%clk
0:04:01]} 16... e5 {[%clk 0:03:50.6]} 17. Bh6 {[%clk 0:03:55.5]} 17... Be6
{[%clk 0:03:09.5]} 18. Ng5 {[%clk 0:03:38.6]} 18... Qb4 {[%clk 0:02:56.4]} 19.
Qa1 {[%clk 0:03:22.7]} 19... Qe7 {[%clk 0:02:40.5]} 20. f4 {[%clk 0:03:16.6]}
20... f6 {[%clk 0:02:30.3]} 21. Nxe6 {[%clk 0:03:13.1]} 21... Qxe6 {[%clk
0:02:28.9]} 22. fxe5 {[%clk 0:03:08]} 22... Nxe5 {[%clk 0:02:26.5]} 23. h3
{[%clk 0:02:41.5]} 23... Rd2 {[%clk 0:02:19.3]} 24. Bg4 {[%clk 0:02:31.5]} 24...
Nxg4 {[%clk 0:02:11.1]} 25. hxg4 {[%clk 0:02:25.7]} 25... Qxg4 {[%clk
0:02:02.3]} 26. Rf2 {[%clk 0:02:08.6]} 26... Rd1+ {[%clk 0:01:52.9]} 27. Qxd1
{[%clk 0:02:00.7]} 27... Qxd1+ {[%clk 0:01:51.3]} 28. Rf1 {[%clk 0:01:59.8]}
28... Qh5 {[%clk 0:01:43.6]} 29. Bf4 {[%clk 0:01:57]} 29... Rf8 {[%clk
0:01:30.8]} 30. Bd6 {[%clk 0:01:55]} 30... Rf7 {[%clk 0:01:27]} 31. Rc1 {[%clk
0:01:53.2]} 31... Qd5 {[%clk 0:01:15]} 32. Rc8+ {[%clk 0:01:48.6]} 32... Kg7
{[%clk 0:01:13.9]} 33. Bf4 {[%clk 0:01:44.9]} 33... g5 {[%clk 0:01:08.1]} 34.
Bh2 {[%clk 0:01:40.9]} 0-1